Cogmind - Beta 10.2 @@@ ROGUE MODE // 2021.12.02 @ 23:48:41 Player: TheSlyFawkes Result: Self-destructed Performance ------------- Evolutions (1) 500 Regions Visited (2) 400 Robots Destroyed (22) 110 Value Destroyed (316) 316 Prototype IDs (0) 0 Alien Tech Used (0) 0 Bonus (0) 0 TOTAL SCORE: 1326 Bonus ------- None Cogmind --------- Core Integrity 367/400 Matter 285/300 Energy 123/125 System Corruption 0% Temperature Cool (0) Movement Flying (37) Location -9/Materials Parts ------- > --- POWER (2) -------- Light Ion Engine > --- PROPULSION (2) --- Flight Unit Flight Unit > --- UTILITY (3) ------ Visual Processing Unit Signal Interpreter Improved Signal Interpreter > --- WEAPON (2) ------- Mini Grenade Launcher Datajack > --- INVENTORY (4) ---- Light Ion Engine Structural Scanner ECM Suite Peak State ------------ > --- POWER ------------ Light Ion Engine > --- PROPULSION ------- Flight Unit Flight Unit > --- UTILITY ---------- Visual Processing Unit Signal Interpreter Improved Signal Interpreter > --- WEAPON ----------- Mini Grenade Launcher Datajack > --- INVENTORY -------- Light Ion Engine Flight Unit Structural Scanner ECM Suite [Rating: 11] Favorites ----------- Power Ion Engine Engine Ion Engine Propulsion Light Treads Treads Light Treads Flight Unit Flight Unit Utility Visual Processing Unit Storage Small Storage Unit Processor Visual Processing Unit Weapon Datajack Energy Gun Small Laser Ballistic Gun Assault Rifle Launcher Mini Grenade Launcher Special Melee Weapon Datajack Build | -11 -10 -9 ------- Run | Scr Mat Mat Slots Evolved 2 | . . 2 Power 1 | . . 1 Propulsion . | . . . Utility 1 | . . 1 Weapon . | . . . Parts Attached 21 | 6 13 2 Power 2 | 1 1 . Engine 2 | 1 1 . Core . | . . . Reactor . | . . . Propulsion 6 | 2 3 1 Treads 2 | 2 . . Leg . | . . . Wheel . | . . . Hover . | . . . Flight 4 | . 3 1 Utility 5 | 1 3 1 Device . | . . . Storage 2 | 1 1 . Processor 3 | . 2 1 Hackware . | . . . Protection . | . . . Artifact . | . . . Weapon 8 | 2 6 . Energy Gun 3 | 1 2 . Energy Cannon . | . . . Ballistic Gun 3 | 1 2 . Ballistic Cannon . | . . . Launcher 1 | . 1 . Special Weapon . | . . . Impact Weapon . | . . . Slashing Weapon . | . . . Piercing Weapon . | . . . Special Melee Weapon 1 | . 1 . Unidentified Prototypes . | . . . Parts Lost 1 | . . 1 Power . | . . . Propulsion 1 | . . 1 Utility . | . . . Weapon . | . . . Highest Loss Streak 1 | . . 1 Average Slot Usage (%) 91 | . 94 80 Engine 13 | . 14 11 Treads 14 | . 18 . Flight 12 | . 9 22 Storage 7 | . 9 . Processor 16 | . 13 25 Energy Gun 7 | . 9 . Ballistic Gun 8 | . 10 . Launcher 4 | . 3 11 Special Melee Weapon 5 | . 4 11 Naked Turns . | . . . Heaviest Build 24 | 13 24 5 Greatest Support 40 | 40 40 8 Greatest Overweight (x) 2 | 2 . 1 Average Overweight (x) . | . . . Largest Inventory Capacity 10 | 6 10 4 Average Capacity 5 | 4 5 4 Most Carried 6 | 4 6 4 Average Carried 4 | 3 5 3 Final Capacity 6 | 6 4 4 Final Carried 4 | 4 4 3 Class Distribution -------------------- 53% | Mutant 46% | Scavenger-Mutant Dominant Class ---------------- Mutant | -10/Materials Scavenger-Mutant | -9/Materials Resources | -11 -10 -9 ----------- Run | Scr Mat Mat Matter Collected 511 | 217 294 . Remotely . | . . . Salvage Created 926 | . 926 . Parts 43 | . 43 . Haulers Intercepted . | . . . Recyclers Shooed 7 | . 7 . Parts Field Recycled . | . . . Retrieved Matter . | . . . Parts Self-Destructed . | . . . Prevented . | . . . Kills | -11 -10 -9 ------- Run | Scr Mat Mat Combat Hostiles Destroyed 11 | . 11 . Guns 11 | . 11 . Classes Destroyed 6 | . 6 . Worker 2 | . 2 . Recycler 6 | . 6 . Operator 1 | . 1 . Watcher 2 | . 2 . Swarmer 6 | . 6 . Grunt 5 | . 5 . Best Kill Streak 6 | . 6 . Combat Bots Only 4 | . 4 . Max Kills in Single Turn 2 | . 2 . Gunslinging 1 | . 1 . Exploded . | . . . Melee . | . . . Uniques/NPCs Destroyed . | . . . Combat | -11 -10 -9 -------- Run | Scr Mat Mat Damage Taken 474 | . 394 80 Core 102 | . 69 33 Absorbed by Shields . | . . . Core Remaining (%) 86 | 100 72 . Volleys Fired 49 | 1 48 . Largest 2 | 2 2 . Hottest 60 | 60 60 . Shots Fired 95 | 2 93 . Gun 95 | 2 93 . Cannon . | . . . Launcher . | . . . Special . | . . . Kinetic 49 | 1 48 . Thermal 27 | . 27 . Explosive . | . . . Electromagnetic 19 | 1 18 . Robot Hit Streak 8 | . 8 . Robot Miss Streak 3 | . 3 . Penetration Max . | . . . Secondary Targets 2 | . 2 . Max Gunslinging Chain 1 | . 1 . Shots Hit Robots 65 | . 64 1 Core Hits 35 | . 35 . Critical Hits 1 | . 1 . Critical Kills 1 | . 1 . Critical Parts Destroyed . | . . . Melee Attacks 11 | . 10 1 Impact . | . . . Slashing . | . . . Piercing . | . . . Sneak Attacks 5 | . 4 1 Combat Hostiles . | . . . Follow-up Attacks . | . . . Damage Inflicted 787 | . 787 . Guns 787 | . 787 . Cannons . | . . . Explosions . | . . . Melee . | . . . Ramming . | . . . Kinetic 332 | . 332 . Thermal 258 | . 258 . Explosive . | . . . Electromagnetic 197 | . 197 . Impact . | . . . Slashing . | . . . Piercing . | . . . Highest Corruption . | . . . Average Corruption . | . . . Corruption Purged . | . . . Overload Shots . | . . . Overflow Damage . | . . . Projectiles . | . . . Explosions . | . . . Melee . | . . . Knockbacks . | . . . Impact . | . . . Kinetic . | . . . Secondary . | . . . Self-Inflicted Damage . | . . . Shots . | . . . Rammed . | . . . Targets Rammed . | . . . Kicked . | . . . Crushed . | . . . Highest Temperature 108 | . 108 . Average Temperature 32 | . 32 . Received Heat Transfer 159 | . 132 27 Siege Activations . | . . . Robots Corrupted . | . . . Combat Hostiles . | . . . Parts Fried . | . . . Impact Corruptions . | . . . Robots Melted . | . . . Combat Hostiles . | . . . Parts Melted 1 | . 1 . Heat Transferred 575 | . 575 . Parts Sabotaged . | . . . Parts Stolen . | . . . Parts Stripped . | . . . Power Chain Reactions . | . . . Missiles Intercepted . | . . . Alert | -11 -10 -9 ------- Run | Scr Mat Mat Peak Influence 250 | . 243 250 Initial 102 | . . 102 Average 117 | . 118 152 Maximum Alert Level 1 | . 1 1 Low Security (%) 88 | 100 85 93 Level 1 11 | . 14 6 Level 2 . | . . . Level 3 . | . . . Level 4 . | . . . Level 5 . | . . . High Security . | . . . Max Security . | . . . Squads Dispatched 3 | . 2 1 Investigation . | . . . Extermination . | . . . Reinforcement 3 | . 2 1 Assault . | . . . Garrison . | . . . Intercept . | . . . Construction Impeded . | . . . Haulers Reinforced . | . . . Stealth | -11 -10 -9 --------- Run | Scr Mat Mat Distress Signals 3 | . 2 1 Communications Jammed . | . . . Distress Signals . | . . . Times Spotted 44 | . 22 22 Peak Tracking Total 17 | . 5 17 Tactical Retreats 2 | . 1 1 Traps | -11 -10 -9 ------- Run | Scr Mat Mat Traps Triggered . | . . . Indirectly . | . . . Trap Hack Attempts . | . . . Triggered . | . . . Disarmed . | . . . Reprogrammed . | . . . Reused . | . . . Traps Extracted . | . . . Installed . | . . . Triggered . | . . . Machines | -11 -10 -9 ---------- Run | Scr Mat Mat Machines Disabled . | . . . Max in Single Turn . | . . . Machines Sabotaged . | . . . Garrisons Compromised . | . . . Overloaded Fab Kills . | . . . Fab Network Shutdowns . | . . . Hacking | -11 -10 -9 --------- Run | Scr Mat Mat Machines Accessed 6 | . 3 3 Terminals 6 | . 3 3 Fabricators . | . . . Repair Stations . | . . . Recycling Units . | . . . Scanalyzers . | . . . Garrison Access . | . . . Total Hacks 13 | . 6 7 Successful 4 | . 1 3 Failed 9 | . 5 4 Catastrophic 3 | . 2 1 Database Lockouts . | . . . Manual 11 | . 5 6 Terminals 13 | . 6 7 Fabricators . | . . . Repair Stations . | . . . Recycling Units . | . . . Scanalyzers . | . . . Garrison Access . | . . . Terminal Hacks 4 | . 1 3 Terminal Index 2 | . 1 1 Alert Level 1 | . . 1 Security Status 1 | . . 1 Fabricator Hacks . | . . . Repair Station Hacks . | . . . Recycling Unit Hacks . | . . . Scanalyzer . | . . . Garrison Access Hacks . | . . . Unauthorized Hacks . | . . . Terminals . | . . . Fabricators . | . . . Repair Stations . | . . . Recycling Units . | . . . Scanalyzers . | . . . Garrison Access . | . . . Data Cores Recovered . | . . . Used . | . . . Hacking Detections 5 | . 2 3 Full Trace Events . | . . . Feedback Events . | . . . Feedback Blocked . | . . . Robot Schematics Acquired . | . . . Robots Built . | . . . Matter . | . . . Time . | . . . Total Robot Build Rating . | . . . Part Schematics Acquired . | . . . Parts Built . | . . . Matter . | . . . Time . | . . . Total Part Build Rating . | . . . Parts Repaired . | . . . Time . | . . . Parts Recycled . | . . . Recycled Matter . | . . . Retrieved Matter . | . . . Retrieved Components . | . . . Parts Scanalyzed . | . . . Part Schematics Acquired . | . . . Parts Damaged . | . . . Bothacking | -11 -10 -9 ------------ Run | Scr Mat Mat Used RIF Installer . | . . . Robots Hacked 3 | . 3 . Non-combat 3 | . 3 . Combat . | . . . Robot Hacks Applied 4 | . 4 . no_distress 3 | . 3 . find_recycling 1 | . 1 . Relay Couplers Released . | . . . Robots Rewired . | . . . Allies Hacked . | . . . Hacks Repelled . | . . . Allies | -11 -10 -9 -------- Run | Scr Mat Mat Total Allies . | . . . Largest Group . | . . . Highest-Rated Group . | . . . Highest-Rated Ally . | . . . Total Orders . | . . . Ally Attacks . | . . . Total Damage . | . . . Kills . | . . . Allies Corrupted . | . . . Allies Melted . | . . . Intel | -11 -10 -9 ------- Run | Scr Mat Mat Robot Analysis Total . | . . . Derelict Logs Recovered . | . . . Drone Launches . | . . . Drone Recoveries . | . . . Exploration | -11 -10 -9 ------------- Run | Scr Mat Mat Turns Passed 1072 | 74 768 230 Spaces Moved 1048 | 57 648 343 Core 33 | 33 . . Treads 251 | 24 227 . Legs . | . . . Wheels . | . . . Hover . | . . . Flight 764 | . 421 343 Fastest Speed 37 | 50 37 37 Average Speed 67 | 103 80 37 Slowest Speed 160 | 160 160 120 Overloaded Moves . | . . . Propulsion Burnouts . | . . . Robots Hopped 2 | . . 2 Cave-ins Triggered . | . . . Exploration Rate (%) 43 | 4 96 29 Regions Visited 2 Branch Regions . Pre-discovered Areas . | . . . Known Exits Taken 1 | . 1 . Unknown Exits Taken 1 | 1 . . Scrap Searched . | . . . Spaces Dug . | . . . Terrain Destroyed . | . . . Melee . | . . . Projectile . | . . . AOE . | . . . Terrain Rammed . | . . . Walls Destroyed . | . . . Machines Disabled . | . . . Actions | -11 -10 -9 --------- Run | Scr Mat Mat Total 1309 | 68 800 441 Wait 149 | . 52 97 Move 1042 | 56 647 339 Hop 2 | . . 2 Pick Up 17 | 5 12 . Fast Attach 10 | 5 4 1 Attach 4 | 1 2 1 Detach . | . . . Swap 7 | . 7 . Drop 18 | . 18 . Fire 49 | 1 48 . Melee 11 | . 10 1 Ram . | . . . Kick . | . . . Crush . | . . . Escape Stasis . | . . . Rewire . | . . . Trap . | . . . Miscellaneous . | . . . Route ------- -11/Scrapyard -10/Materials (discovered 4 exits: *Mat x3 / *Min) -9/Materials History --------- Turn | Location | Event 27 | -11/Scrapyard | Discovered new exit (range 16) 75 | -11/Scrapyard | Entered Materials 333 | -10/Materials | Build established: Mutant 412 | -10/Materials | Discovered new exit (range 7) 626 | -10/Materials | Discovered new exit (range 16) 635 | -10/Materials | Identified exit to Materials 669 | -10/Materials | Discovered exit to Materials (range 7) 704 | -10/Materials | Identified exit to Mines 786 | -10/Materials | Discovered exit to Materials (range 18) 843 | -10/Materials | Entered another Materials area 843 | -9/Materials | Evolved 2 slots: Power x1, Utility x1 875 | -9/Materials | Build established: Scavenger-Mutant 1073 | -9/Materials | Self-destructed Last Messages --------------- Connecting with Terminal... >>Alert(Check) Current Alert Level: Low Security Connecting with Terminal... >>Enumerate(Guards) Retrieving latest reported positions... Security request, restricting to local area... Found 2 active security squads. Downloaded coordinate data. K-01 Serf collects debris. Sneak attack on R-06 Scavenger. Jacked R-06 Scavenger... Acquired Imp. Signal Interpreter. Electrolysis Chamber disabled. W-16 Scout sends out distress signal. K-01 Serf cleans the Fusion Modulator. Flight Unit destroyed. O-16 Technician uses terminal to summon reinforcements. ALERT: Hostiles spotted, dispatching reinforcements to Terminal M011. O-16 Technician locks terminal. Map ----- +----------------------------------------------------+ | # # # # # #?????????????????????? | | ###### / T # # """ """ #?????????????????????? | | #????# # # # """ """ #?????????????????????? | | #????# ##### # """ """ #?????????????????????? | | #????# / # #?????????????????????? | | / ##### # #?????????????????????? | | ###### #???# ########+####???????????????????? | | ?????###+##???# #???????????????????? | | ??????????????# #???????????????????? | | ????????????### !!! #???????????????????? | | ?????????? !!! #???????????????????? | | ??????? ############ !!! #???????????????????? | | ?????????????????????# ###?????????????????? | | ?????????????????????# ""#?????????????????? | | ?????????????????????# [[ ""#?????????????????? | | ?????????????????????# [ T"#?????????????????? | | ?????????????????????# ""#?????????????????? | | ?????????????????????# ""#?????????????????? | | ???????????????????### ###?????????????????? | | ?????????????"" / #???????????????????? | | ?????????????"" ######"T"## #???????????????????? | | ??????????????????????#"""## #???????????????????? | | ??????????????????????####?# #???????????????????? | | ???????????????????????????# #???????????????????? | | ???????????# ########### #???????????????????? | | ???????????# Y @ #???????????????????? | | ???????????# #############???????????????????? | | ?????????????????????????????????????????????????? | | ?????????????????????????????????????????????????? | | ?????????????????????????????????????????????????? | | ?????????????????????????????????????????????????? | | ?????????????????????????????????????????????????? | | ?????????????????????????????????????????????????? | | ?????????????????????????????????????????????????? | | ?????????????????????????????????????????????????? | | ?????????????????????????????????????????????????? | | ?????????????????????????????????????????????????? | | ?????????????????????????????????????????????????? | | ?????????????????????????????????????????????????? | | ?????????????????????????????????????????????????? | | ?????????????????????????????????????????????????? | | ?????????????????????????????????????????????????? | | ?????????????????????????????????????????????????? | | ?????????????????????????????????????????????????? | | ?????????????????????????????????????????????????? | | ?????????????????????????????????????????????????? | | ?????????????????????????????????????????????????? | | ?????????????????????????????????????????????????? | | ?????????????????????????????????????????????????? | | ?????????????????????????????????????????????????? | +----------------------------------------------------+ Best States ------------- Heat Dissipation 28 Energy Generation 10 Energy Capacity 250 Matter Stores 300 Matter Capacity 300 Sight Range 18 Terrain Scan Density 10 Evasion (%) 62 Recoil Reduction 2 Item Schematics ----------------- None Robot Schematics ------------------ None Fabricated ------------ Nothing Alien Tech Used ----------------- None Achievements -------------- Hey, That's Mine! Challenges ------------ None Game ------ Seed MetafiberMiniTriangulator Manual? 0 Play Time 00:20:21 Cumulative 26.4 hours Start 2021.12.02 @ 23:08:53 End 2021.12.02 @ 23:48:41 Sessions 3 Manual Loads 0 Difficulty Rogue Special Mode None Game No. 39 Rogue 38 Adventurer 1 Explorer 0 Win Type - Total 0 Types 0/0/0/0/0/0/0/0/0 Lore% 22 Gallery% 22 Achievement% 24 Wizard Run 0 Options --------- ASCII 0 Keyboard 0 Movement Mouse Keybinds 0 Fullscreen 1 Font 18/SmallcapsGlow Map View 76x50 Tactical HUD 0 Map Filters NONE Filters NONE Steam 1 RUN: cb4d7d70-4465-44b2-a8e3-ddac2ab37eef